bitfinex/quotes_BTCUSD_20230113
["timestamp","ask_amount","ask_price","bid_price","bid_amount"]
[1673650076672,0.14125708,19905.0,19904.0,1.161915]
[1673650077701,0.14125708,19905.0,19904.0,0.157093]
[1673650077945,0.14125708,19905.0,19899.0,1.005056]
[1673650077946,0.2,19904.0,19899.0,1.005056]
[1673650078197,0.22028541,19903.0,19899.0,0.502519]
[1673650078438,0.20028541,19902.0,19899.0,0.502519]
[1673650079433,0.20028541,19902.0,19898.0,0.51589745]
[1673650079953,0.2,19901.0,19898.0,0.01335645]
[1673650080200,1.70646206,19900.0,19898.0,0.01335645]
[1673650080483,0.323857,19899.0,19898.0,0.01335645]
[1673650080733,1.83008365,19899.0,19898.0,0.01335645]
[1673650080981,1.005074,19899.0,19898.0,0.01335645]
[1673650081239,0.502537,19899.0,19898.0,0.01335645]
[1673650081721,1.1055804,19899.0,19898.0,0.01335645]
[1673650082001,1.4294374,19899.0,19898.0,0.00835645]
[1673650082242,1.93059005,19899.0,19898.0,0.00835645]
[1673650082499,2.18186005,19899.0,19898.0,0.00835645]
[1673650082753,2.08135365,19899.0,19898.0,0.00835645]
[1673650083021,2.28135365,19899.0,19898.0,0.00835645]
[1673650083272,0.06746355,19898.0,19897.0,0.01359101]
[1673650083529,3.1547022,19898.0,19897.0,0.00531533]
[1673650083778,3.27967663,19898.0,19897.0,0.00531533]
[1673650084025,3.1547022,19898.0,19897.0,0.00531533]
[1673650085776,3.1547022,19898.0,19892.0,0.01335645]
[1673650085777,0.2,19897.0,19892.0,0.01335645]
[1673650086036,2.78449306,19896.0,19892.0,0.01335645]
[1673650086298,0.76969806,19895.0,19892.0,0.01335645]
[1673650086564,2.03033765,19894.0,19892.0,0.01335645]
[1673650086812,0.06826,19893.0,19892.0,0.01335645]
[1673650088129,0.570949,19893.0,19892.0,0.01335645]
[1673650088362,0.2,19892.0,19885.0,0.502889]
[1673650088619,1.005534,19890.0,19884.0,0.502912]
[1673650088865,1.005534,19890.0,19884.0,1.0561012]
[1673650088866,0.40028541,19889.0,19884.0,1.0561012]
[1673650089123,0.40028541,19889.0,19884.0,1.00581]
[1673650089124,0.20028541,19888.0,19884.0,1.00581]
[1673650089383,0.702798,19889.0,19884.0,1.00581]
[1673650089384,0.18626257,19887.0,19884.0,1.00581]
[1673650089639,0.20028541,19886.0,19884.0,1.00581]
[1673650089885,0.20028541,19886.0,19883.0,0.50292]
[1673650090380,0.20028541,19886.0,19884.0,0.1573]
[1673650090632,0.502841,19887.0,19882.0,0.01259362]
[1673650090897,0.2,19886.0,19882.0,0.01259362]
[1673650091147,0.40028541,19886.0,19882.0,0.01259362]
[1673650091401,0.90315141,19886.0,19882.0,0.01259362]
[1673650091648,0.29060055,19885.0,19882.0,0.01259362]
[1673650091895,0.523857,19884.0,19882.0,0.01259362]
[1673650092146,0.06826,19883.0,19882.0,0.01259362]
[1673650092404,0.702922,19884.0,19882.0,0.01259362]
[1673650092690,1.329741,19883.0,19882.0,0.01259362]
[1673650092952,1.329741,19883.0,19882.0,0.00759362]
[1673650093226,0.2,19885.0,19882.0,0.00759362]
[1673650093474,1.005854,19884.0,19882.0,0.00759362]
[1673650093723,0.523857,19883.0,19882.0,0.00759362]
[1673650094001,1.529741,19883.0,19882.0,0.00759362]
[1673650094248,1.005884,19883.0,19882.0,0.00759362]
[1673650094817,1.529741,19883.0,19882.0,0.00759362]
[1673650095303,2.08531094,19883.0,19882.0,0.00759362]
[1673650095549,2.08531094,19883.0,19882.0,0.00324268]
[1673650095550,1.83867996,19883.0,19882.0,0.00324268]
[1673650095800,2.89540255,19883.0,19882.0,0.00324268]
[1673650096066,2.89540255,19883.0,19882.0,2.68e-06]
[1673650096315,2.89540255,19883.0,19877.0,0.01511294]
[1673650096575,0.2515,19881.0,19877.0,0.01511294]
[1673650096816,3.289934,19880.0,19877.0,0.01511294]
[1673650097085,1.12498259,19879.0,19877.0,0.01511294]
[1673650097332,1.329993,19878.0,19877.0,0.01511294]
[1673650097582,2.08584835,19878.0,19877.0,0.01511294]
[1673650097827,2.03114565,19878.0,19877.0,0.01511294]
[1673650098068,2.84013526,19878.0,19877.0,0.01511294]
[1673650098321,2.03114565,19878.0,19877.0,0.01511294]
[1673650098571,2.58671559,19878.0,19877.0,0.01511294]
[1673650099057,2.83825559,19878.0,19877.0,0.01511294]
[1673650099817,2.28268565,19878.0,19877.0,0.01511294]
[1673650100059,2.83825559,19878.0,19877.0,0.01011294]
[1673650100315,2.56125932,19878.0,19877.0,0.01011294]
[1673650100563,3.11682926,19878.0,19877.0,0.01011294]
[1673650100798,3.41682926,19878.0,19877.0,0.01011294]
[1673650101081,3.11682926,19878.0,19877.0,0.01011294]
[1673650101325,0.01011,19877.0,19875.0,0.05541179]
[1673650101591,2.08726965,19876.0,19873.0,0.01535706]
[1673650101844,2.08726965,19876.0,19864.0,0.669109]
[1673650101845,0.2,19873.0,19864.0,0.669109]
[1673650102092,0.2,19873.0,19863.0,0.503435]
[1673650102093,2.32489978,19872.0,19863.0,0.503435]
[1673650102339,1.57405678,19871.0,19864.0,0.0503435]
[1673650102593,1.57405678,19871.0,19862.0,0.503472]
[1673650102594,1.82173978,19870.0,19862.0,0.503472]
[1673650102833,1.27290413,19869.0,19862.0,0.503472]
[1673650103079,0.74904713,19868.0,19862.0,0.503472]
[1673650103335,0.20028541,19867.0,19861.0,0.503484]
[1673650103629,0.20028541,19867.0,19859.0,0.653524]
[1673650103630,1.25019978,19866.0,19858.0,0.05228007]
[1673650103868,1.25019978,19866.0,19856.0,0.503612]
[1673650103869,1.006859,19864.0,19856.0,0.503612]
[1673650104122,1.25019978,19863.0,19856.0,0.503612]
[1673650104386,1.75365378,19863.0,19856.0,0.503612]
[1673650104626,0.40028541,19862.0,19855.0,0.5037166]
[1673650104891,0.20028541,19861.0,19855.0,0.12431816]
[1673650105136,0.20028541,19860.0,19854.0,0.503665]
[1673650105388,0.20028541,19859.0,19855.0,0.01645133]
[1673650105636,0.20028541,19858.0,19855.0,0.01645133]
[1673650105881,0.91509313,19860.0,19855.0,0.01645133]
[1673650106139,0.503557,19859.0,19855.0,0.01645133]
[1673650106394,0.503557,19859.0,19850.0,0.01069738]
[1673650106395,2.32529506,19858.0,19850.0,0.01069738]
[1673650106639,0.03920954,19854.0,19850.0,0.01069738]
[1673650106901,0.50115265,19852.0,19850.0,0.01069738]
[1673650107162,1.53155641,19853.0,19850.0,0.01069738]
[1673650107163,2.57787378,19851.0,19850.0,0.01069738]
[1673650107406,2.02911206,19851.0,19850.0,0.01069738]
[1673650107645,2.02911206,19851.0,19838.0,0.00101]
[1673650107646,0.01059262,19850.0,19838.0,0.00101]
[1673650107905,0.25197,19844.0,19838.0,0.00101]
[1673650108149,1.31845978,19843.0,19835.0,3.42825846]
[1673650108392,0.95343806,19842.0,19835.0,2.92410046]
[1673650108634,1.45019978,19841.0,19835.0,2.92410046]
[1673650108884,2.07810178,19840.0,19835.0,2.92410046]
[1673650109137,0.76969806,19839.0,19835.0,2.92410046]
[1673650109390,0.76969806,19839.0,19835.0,0.02902285]
[1673650109391,0.20028541,19839.0,19835.0,0.02902285]
[1673650109639,0.20028541,19839.0,19834.0,0.00378134]
[1673650109640,0.323857,19838.0,19834.0,0.00378134]
[1673650109887,0.90956172,19841.0,19834.0,0.04925552]
[1673650109888,0.54876172,19841.0,19834.0,0.04925552]
[1673650110133,1.6139,19843.0,19834.0,0.04925552]
[1673650110134,1.6139,19843.0,19838.0,0.03238569]
[1673650110386,1.6139,19843.0,19839.0,0.04547418]
[1673650111126,0.54638838,19845.0,19839.0,0.04547418]
[1673650111365,0.05463884,19844.0,19840.0,0.04547418]
[1673650111627,0.323857,19843.0,19838.0,0.03238569]
[1673650111879,0.323857,19843.0,19834.0,0.00378134]
[1673650111880,0.26826,19842.0,19834.0,0.00378134]
[1673650112138,1.56046951,19841.0,19834.0,0.06963365]
[1673650112395,0.7193437,19841.0,19834.0,0.02415947]
[1673650112642,0.20028541,19841.0,19834.0,0.02415947]
[1673650112902,0.20028541,19840.0,19834.0,0.06963365]
[1673650113146,0.20028541,19839.0,19835.0,0.00696337]
[1673650113394,0.20028541,19839.0,19834.0,0.04925552]
[1673650113896,0.20028541,19839.0,19835.0,0.15659594]
[1673650114154,0.66308089,19843.0,19835.0,0.04547418]
[1673650114404,0.06630809,19842.0,19836.0,0.20204018]
[1673650114750,0.06630809,19842.0,19834.0,0.50794534]
[1673650114751,0.2665935,19842.0,19837.0,0.03997169]
[1673650114969,0.06630809,19842.0,19836.0,0.03997169]
[1673650115208,1.03206887,19841.0,19834.0,0.00378134]
[1673650115468,0.269342,19840.0,19834.0,0.00378134]
[1673650115716,0.269342,19840.0,19831.0,0.07748562]
[1673650115717,0.70143806,19839.0,19831.0,0.07748562]
[1673650115970,0.20028541,19838.0,19831.0,0.11745731]
[1673650116218,0.20028541,19837.0,19830.0,2.6025]
[1673650116467,0.57129646,19838.0,19830.0,0.03997169]
[1673650116468,0.20028541,19836.0,19830.0,0.03997169]
[1673650116716,0.20028541,19836.0,19831.0,0.03997169]
[1673650116969,1.6142,19840.0,19832.0,0.660822]
[1673650117237,1.81448541,19840.0,19833.0,0.03997169]
[1673650117514,0.2,19839.0,19834.0,0.03457704]
[1673650117764,0.40028541,19839.0,19834.0,0.03457704]
[1673650118272,0.40028541,19839.0,19830.0,2.7613]
[1673650118273,0.52428541,19838.0,19830.0,3.12545351]
[1673650118517,0.40028541,19837.0,19830.0,3.16003055]
[1673650118758,0.20028541,19836.0,19830.0,3.16003055]
[1673650119004,0.20028541,19836.0,19830.0,0.55753055]
[1673650119249,0.20028541,19836.0,19831.0,0.03457704]
[1673650119496,0.20028541,19836.0,19832.0,0.660836]
[1673650119741,0.20028541,19836.0,19831.0,0.23457704]
[1673650119991,0.20028541,19836.0,19831.0,0.03457704]
[1673650120274,0.22031395,19836.0,19830.0,0.01366951]
[1673650120530,0.2,19835.0,19830.0,0.01366951]
[1673650120773,0.22031395,19836.0,19830.0,0.01366951]
[1673650121024,0.22031395,19836.0,19831.0,0.03457704]
[1673650121025,0.20028541,19836.0,19831.0,0.03457704]
[1673650121270,2.277699,19840.0,19832.0,0.03457704]
[1673650121526,2.277699,19840.0,19833.0,0.03457704]
[1673650121527,1.9082797,19840.0,19833.0,0.03457704]
[1673650121791,1.6142,19840.0,19834.0,0.03457704]
[1673650122038,0.662721,19844.0,19833.0,0.504194]
[1673650122039,1.6341,19844.0,19835.0,0.03457704]
[1673650122283,1.6341,19844.0,19836.0,0.19115204]
[1673650122526,0.863222,19851.0,19836.0,0.19115204]
[1673650122527,0.503706,19853.0,19838.0,1.512221]
[1673650122789,0.70242354,19854.0,19840.0,0.03457704]
[1673650122790,1.6341,19852.0,19840.0,0.03457704]
[1673650123032,0.54289354,19854.0,19844.0,1.511775]
[1673650123033,0.03920954,19854.0,19844.0,1.511775]
[1673650123294,0.75053807,19854.0,19845.0,0.03457704]
[1673650123552,0.95082348,19854.0,19847.0,0.45687933]
[1673650123793,0.03920954,19854.0,19848.0,0.02957703]
[1673650124035,0.03920954,19854.0,19847.0,0.45687933]
[1673650124036,0.03920954,19854.0,19849.0,1.19356903]
[1673650124305,0.03920954,19854.0,19850.0,0.18599003]
[1673650124559,0.03920954,19854.0,19851.0,0.63332403]
[1673650124805,0.03920954,19854.0,19852.0,0.12411604]
[1673650125061,0.03920954,19854.0,19853.0,1.007404]
[1673650125310,0.03920954,19854.0,19853.0,1.10194]
[1673650126808,0.0048612,19855.0,19853.0,1.60309265]
[1673650127051,6.12e-05,19855.0,19854.0,0.05252094]
[1673650127302,1.6111,19865.0,19855.0,0.1]
[1673650127548,1.6111,19865.0,19857.0,1.0072]
[1673650127809,1.4611,19865.0,19858.0,0.22478903]
[1673650128062,0.63616504,19868.0,19860.0,1.007044]
[1673650128306,0.1,19868.0,19861.0,0.12957703]
[1673650128550,0.1,19868.0,19862.0,0.02957703]
[1673650128808,0.1,19869.0,19863.0,0.02957703]
[1673650129052,0.1,19869.0,19862.0,0.503459]
[1673650129053,0.323967,19868.0,19864.0,0.02957703]
[1673650129318,0.1,19869.0,19862.0,0.503459]
[1673650129563,0.20028541,19868.0,19862.0,0.503459]
[1673650129806,0.52425241,19867.0,19862.0,0.503459]
[1673650130061,0.52425241,19866.0,19861.0,0.50348]
[1673650130308,0.1,19864.0,19860.0,0.503522]
[1673650130568,0.1,19864.0,19854.0,0.81289994]
[1673650130569,0.52425241,19863.0,19854.0,0.65618994]
[1673650130826,0.43152041,19862.0,19854.0,0.503669]
[1673650131074,2.55013551,19861.0,19854.0,0.503669]
[1673650131320,0.1,19859.0,19854.0,0.503669]
[1673650131581,0.52425241,19858.0,19854.0,0.49933267]
[1673650131828,0.20028541,19857.0,19852.0,0.503716]
[1673650132078,0.59615265,19859.0,19852.0,0.503716]
[1673650132079,0.20028541,19856.0,19852.0,0.503716]
[1673650132321,0.53364089,19858.0,19851.0,0.603744]
[1673650132322,0.20028541,19855.0,19851.0,0.503744]
[1673650132597,0.20028541,19854.0,19851.0,0.503744]
[1673650132846,0.20028541,19853.0,19851.0,0.503744]
[1673650133131,0.20028541,19852.0,19847.0,2.6025]
[1673650133371,0.15486,19855.0,19847.0,2.6025]
[1673650133372,0.20028541,19851.0,19847.0,2.6025]
[1673650133668,0.88846064,19854.0,19845.0,0.503891]
[1673650133669,0.20028541,19850.0,19845.0,0.503891]
[1673650133908,0.20028541,19849.0,19845.0,0.503891]
[1673650134194,0.20028541,19848.0,19844.0,0.1]
[1673650134432,0.68803201,19852.0,19844.0,0.1]
[1673650134433,0.20028541,19847.0,19844.0,0.1]
[1673650134676,0.15575,19850.0,19844.0,0.1]
[1673650134677,0.20028541,19846.0,19844.0,0.1]
[1673650135173,0.68817486,19849.0,19844.0,0.1]
[1673650135421,0.35631541,19849.0,19844.0,0.1]
[1673650135948,0.20028541,19849.0,19844.0,0.1]
[1673650136199,0.53209671,19850.0,19844.0,0.1]
[1673650136200,0.20028541,19848.0,19844.0,0.1]
[1673650136928,0.20028541,19848.0,19842.0,2.6025]
[1673650136929,0.91936806,19847.0,19842.0,2.6025]
[1673650137181,0.91936806,19847.0,19839.0,0.01707215]
[1673650137182,1.05459034,19846.0,19839.0,0.01707215]
[1673650137432,0.70115265,19847.0,19839.0,0.01707215]
[1673650137433,1.06363875,19845.0,19839.0,0.01707215]
[1673650137677,1.5575234,19844.0,19839.0,0.01707215]
[1673650137922,0.33152041,19843.0,19839.0,0.01707215]
[1673650138181,0.52425241,19842.0,19839.0,0.01707215]
[1673650138430,0.131235,19841.0,19839.0,0.01707215]
[1673650138677,0.323967,19840.0,19839.0,0.01707215]
[1673650138960,0.53211834,19842.0,19839.0,0.01707215]
[1673650139207,0.323967,19841.0,19839.0,0.01707215]
[1673650139448,0.131235,19840.0,19839.0,0.01707215]
[1673650139967,0.53211834,19842.0,19839.0,0.01707215]
[1673650140206,0.39269799,19843.0,19839.0,0.01707215]
[1673650140467,0.323967,19842.0,19839.0,0.01707215]
[1673650140713,0.11138506,19843.0,19839.0,0.01707215]
[1673650140714,0.33152041,19841.0,19839.0,0.01707215]
[1673650140955,0.323967,19840.0,19839.0,0.01707215]
[1673650141205,0.82011098,19840.0,19839.0,0.01707215]
[1673650141457,0.81983535,19840.0,19839.0,0.01707215]
[1673650141710,2.3464265,19840.0,19839.0,0.01707215]
[1673650141955,1.950284,19840.0,19839.0,0.01707215]
[1673650142480,1.950284,19840.0,19833.0,0.2883413]
[1673650142733,0.72634125,19839.0,19833.0,0.2883413]
[1673650142982,0.52376541,19838.0,19833.0,0.30613847]
[1673650143235,0.33152041,19837.0,19833.0,0.30613847]
[1673650143482,0.20028541,19837.0,19833.0,0.01779717]
[1673650143728,0.20028541,19837.0,19833.0,0.06999919]
[1673650143981,0.20028541,19837.0,19833.0,0.16999919]
[1673650144224,0.89612601,19839.0,19833.0,0.16999919]
[1673650144225,0.49497336,19839.0,19833.0,0.16999919]
[1673650144473,0.30028541,19839.0,19833.0,0.57420319]
[1673650144971,0.30028541,19838.0,19833.0,0.52200117]
[1673650145219,0.30028541,19838.0,19833.0,0.01779717]
[1673650145220,0.20028541,19837.0,19833.0,0.01779717]
[1673650145470,0.52427741,19836.0,19833.0,0.01779717]
[1673650145724,0.130723,19835.0,19833.0,0.01779717]
[1673650145964,0.323992,19834.0,19833.0,0.01779717]
[1673650146225,0.1,19836.0,19833.0,0.01779717]
[1673650146468,0.323992,19835.0,19833.0,0.01779717]
[1673650146727,0.130723,19834.0,19833.0,0.01779717]
[1673650147221,0.230723,19834.0,19833.0,0.01779717]
[1673650147721,1.879323,19834.0,19833.0,0.01779717]
[1673650147973,1.779323,19834.0,19833.0,0.01779717]
[1673650148223,0.323992,19834.0,19833.0,0.01779717]
[1673650148468,0.53161756,19837.0,19833.0,0.01779717]
[1673650148714,3.26766921,19838.0,19833.0,0.01279717]
[1673650148960,0.323992,19837.0,19833.0,0.01279717]
[1673650149206,2.76357021,19838.0,19833.0,0.01279717]
[1673650149207,0.130723,19836.0,19833.0,0.01279717]
[1673650149456,0.25433,19841.0,19833.0,0.57870629]
[1673650149457,1.6408,19841.0,19833.0,0.57870629]
[1673650149703,1.6408,19841.0,19835.0,0.1]
[1673650149954,1.6408,19841.0,19836.0,0.504116]
[1673650150478,1.6408,19841.0,19836.0,0.497116]
[1673650151225,1.6408,19841.0,19837.0,0.19514]
[1673650151467,0.86427412,19846.0,19838.0,1.512234]
[1673650151468,0.66427412,19846.0,19838.0,1.512234]
[1673650151713,1.5443,19845.0,19839.0,0.2463484]
[1673650151979,0.00515812,19846.0,19840.0,0.095112]
[1673650152216,0.00515812,19846.0,19841.0,1.612012]
[1673650152470,0.00515812,19846.0,19842.0,0.095099]
[1673650152722,0.00515812,19846.0,19842.0,0.09061142]
[1673650152972,0.00515812,19846.0,19843.0,1.606941]
[1673650153239,0.00515812,19846.0,19843.0,1.51185]
[1673650153480,0.00515812,19846.0,19844.0,0.095084]
[1673650153735,0.00515812,19846.0,19843.0,0.49995]
[1673650153985,0.00515812,19846.0,19845.0,1.511715]
[1673650154236,0.00515812,19846.0,19845.0,1.5118643]
[1673650154485,0.00515812,19846.0,19845.0,2.0069413]
[1673650154730,1.2889,19858.0,19845.0,2.50809395]
[1673650154976,1.521,19857.0,19846.0,0.83161756]
[1673650155233,1.72128541,19857.0,19849.0,1.511388]
[1673650155491,1.521,19857.0,19849.0,1.511388]
[1673650155734,0.656217,19863.0,19850.0,0.395031]
[1673650155735,0.503467,19863.0,19850.0,0.395031]
[1673650155986,1.72128541,19862.0,19851.0,0.53161756]
[1673650156247,0.40028541,19861.0,19853.0,1.511037]
[1673650156492,0.40028541,19861.0,19854.0,0.1511037]
[1673650156746,0.40028541,19861.0,19856.0,0.503623]
[1673650156994,1.721,19862.0,19856.0,0.503623]
[1673650156995,1.521,19862.0,19856.0,0.503623]
[1673650157531,1.72128541,19862.0,19856.0,0.503623]
[1673650157804,1.521,19862.0,19857.0,0.0503623]
[1673650158051,1.521,19862.0,19857.0,0.2503623]
[1673650158306,1.521,19862.0,19858.0,1.007124]
[1673650159047,1.72128541,19862.0,19858.0,1.007124]
[1673650159803,1.521,19862.0,19858.0,1.007124]
[1673650160310,1.72128541,19862.0,19858.0,1.007124]
[1673650161541,1.521,19862.0,19858.0,1.007124]
[1673650161784,0.323992,19861.0,19858.0,1.007124]
[1673650162037,0.130723,19860.0,19858.0,1.007124]
[1673650162283,0.2,19861.0,19858.0,1.007124]
[1673650162791,0.323992,19860.0,19858.0,1.007124]
[1673650163039,0.130723,19859.0,19858.0,1.007124]
[1673650163297,0.2,19861.0,19858.0,1.007124]
[1673650163549,0.323992,19860.0,19858.0,1.007124]
[1673650163824,0.130723,19859.0,19857.0,0.503598]
[1673650164073,0.323992,19858.0,19857.0,0.503598]
[1673650164560,0.323992,19858.0,19855.0,0.503638]
[1673650164833,0.49867203,19856.0,19852.0,0.503711]
[1673650165077,0.72427741,19855.0,19852.0,0.503711]
[1673650165322,0.33100841,19854.0,19852.0,0.503711]
[1673650165571,0.2,19855.0,19851.0,0.503739]
[1673650165572,0.72427741,19853.0,19851.0,0.503739]
[1673650165820,0.33100841,19852.0,19850.0,0.503773]
[1673650166070,0.2,19853.0,19849.0,0.503784]
[1673650166071,0.72427741,19851.0,19849.0,0.503784]
[1673650166324,0.72427741,19851.0,19848.0,0.503809]
[1673650166325,0.130723,19850.0,19848.0,0.503809]
[1673650166570,0.323992,19849.0,19848.0,0.503809]
[1673650166818,0.323992,19849.0,19847.0,0.52048916]
[1673650166819,0.2,19851.0,19847.0,0.52048916]
[1673650167064,0.323992,19850.0,19847.0,0.52048916]
[1673650167313,0.130723,19849.0,19847.0,0.01664816]
[1673650167570,0.323992,19848.0,19847.0,0.01664816]
[1673650169307,0.827821,19848.0,19847.0,0.01664816]
[1673650169559,1.027821,19848.0,19847.0,0.01664816]
[1673650169807,1.55943856,19848.0,19847.0,0.01664816]
[1673650170061,1.78576292,19848.0,19847.0,0.01664816]
[1673650170306,1.78576292,19848.0,19845.0,1.5]
[1673650170307,0.2,19847.0,19845.0,1.5]
[1673650170549,1.16621956,19846.0,19845.0,1.5]
[1673650170795,0.2,19845.0,19841.0,0.01664816]
[1673650171041,2.57022052,19844.0,19841.0,0.01664816]
[1673650171284,0.2,19842.0,19841.0,0.01664816]
[1673650171508,1.06091246,19842.0,19841.0,0.01664816]
[1673650171803,0.523992,19842.0,19841.0,0.01664816]
[1673650173061,1.06091246,19842.0,19841.0,0.01664816]
[1673650173564,0.523992,19842.0,19841.0,0.01664816]
[1673650174062,0.323992,19842.0,19841.0,0.01664816]
[1673650175813,0.323992,19842.0,19841.0,0.07581816]
[1673650176110,2.07975436,19848.0,19841.0,1.14181498]
[1673650176111,1.5012,19848.0,19841.0,1.14181498]
[1673650176360,1.70148541,19848.0,19841.0,1.08383016]
[1673650176609,0.2,19846.0,19841.0,1.02466016]
[1673650176861,0.323992,19845.0,19841.0,1.02466016]
[1673650177105,0.323992,19845.0,19841.0,0.52065416]
[1673650177106,0.130723,19844.0,19841.0,0.52065416]
[1673650177351,0.323992,19843.0,19841.0,0.52065416]
[1673650177597,0.52782611,19845.0,19841.0,0.52065416]
[1673650177598,0.52750474,19845.0,19841.0,0.52065416]
[1673650177840,0.2,19846.0,19841.0,0.52065416]
[1673650177841,1.23135787,19846.0,19841.0,0.52065416]
[1673650178095,0.323992,19845.0,19841.0,0.52065416]
[1673650178339,0.130723,19844.0,19841.0,0.52065416]
[1673650178589,0.323992,19843.0,19841.0,0.52065416]
[1673650178839,1.23135787,19846.0,19841.0,0.52065416]
[1673650178840,0.52761782,19845.0,19841.0,0.52065416]
[1673650179095,1.23150424,19846.0,19841.0,1.02466016]
[1673650179345,1.23150424,19846.0,19841.0,0.01664816]
[1673650179346,2.05928155,19845.0,19841.0,0.01664816]
[1673650179601,0.130723,19844.0,19841.0,0.01664816]
[1673650179848,0.323992,19843.0,19841.0,0.01664816]
[1673650180101,0.130723,19842.0,19841.0,0.01664816]
[1673650181090,1.138685,19842.0,19841.0,0.01664816]
[1673650181335,1.333685,19842.0,19841.0,0.01664816]
[1673650181582,1.91282175,19842.0,19841.0,0.01664816]
[1673650181833,0.2,19841.0,19835.0,0.52157544]
[1673650182080,0.2,19841.0,19833.0,0.504186]
[1673650182081,2.81456745,19840.0,19833.0,0.504186]
[1673650182328,1.35587671,19839.0,19832.0,0.504233]
[1673650182581,1.35587671,19839.0,19832.0,0.499233]
[1673650182582,2.06101792,19838.0,19832.0,0.499233]
[1673650182841,0.65414274,19837.0,19832.0,1.003468]
[1673650183098,0.20028541,19837.0,19832.0,1.003468]
[1673650183347,0.20028541,19837.0,19833.0,0.090169]
[1673650183589,0.52851107,19840.0,19834.0,1.512537]
[1673650183839,0.2,19840.0,19835.0,0.1512537]
[1673650184087,0.2,19840.0,19836.0,1.008238]
[1673650184572,0.20028541,19839.0,19836.0,0.504125]
[1673650184833,0.523995,19838.0,19832.0,0.504223]
[1673650185072,0.86521605,19837.0,19832.0,0.504223]
[1673650185316,0.52428041,19836.0,19832.0,0.504223]
[1673650185562,0.20028541,19836.0,19832.0,0.504223]
[1673650185810,0.20028541,19835.0,19831.0,0.504249]
[1673650186116,0.52428141,19834.0,19831.0,0.504249]
[1673650186362,0.20028541,19834.0,19831.0,0.504249]
[1673650186612,0.20028541,19834.0,19830.0,0.504274]
[1673650186859,0.72816953,19836.0,19831.0,0.504257]
[1673650187114,0.72816096,19838.0,19831.0,0.504257]
[1673650187372,0.40028541,19838.0,19831.0,0.504257]
[1673650188124,0.20028541,19837.0,19831.0,0.504257]
[1673650188382,0.2,19838.0,19831.0,0.504257]
[1673650188383,0.20028541,19836.0,19831.0,0.504257]
[1673650188631,0.20028541,19836.0,19831.0,0.6555365]
[1673650188872,0.20028541,19835.0,19831.0,0.504257]
[1673650189134,0.53894262,19837.0,19831.0,0.504257]
[1673650189135,0.20028541,19834.0,19831.0,0.504257]
[1673650189663,0.2,19835.0,19831.0,1.008518]
[1673650189906,0.2,19836.0,19831.0,1.008518]
[1673650190410,0.40028541,19836.0,19831.0,1.008518]
[1673650190648,0.40028541,19836.0,19831.0,1.004518]
[1673650190900,1.05315083,19836.0,19831.0,1.004518]
[1673650191150,0.73922803,19835.0,19831.0,1.58499217]
[1673650191668,0.2,19834.0,19831.0,1.58499217]
[1673650191943,0.40028541,19834.0,19831.0,1.58499217]
[1673650192186,0.40028541,19834.0,19831.0,1.08473517]
[1673650192434,0.2,19834.0,19831.0,1.08473517]
[1673650192688,0.2,19834.0,19831.0,0.57047417]
[1673650192934,0.323996,19833.0,19831.0,0.57047417]
[1673650193204,0.73894262,19834.0,19831.0,0.57047417]
[1673650193447,0.2,19834.0,19831.0,1.07473417]
[1673650193700,0.33329159,19833.0,19831.0,0.50426]
[1673650193942,0.33329159,19833.0,19831.0,1.08320894]
[1673650193943,0.00929559,19833.0,19831.0,1.08320894]
[1673650194425,0.00929559,19833.0,19831.0,1.58746994]
[1673650194687,0.00903725,19838.0,19832.0,0.2]
[1673650194937,0.53894262,19840.0,19833.0,1.602893]
[1673650195189,0.00964746,19838.0,19834.0,0.15914843]
[1673650195442,0.00964746,19838.0,19835.0,1.602766]
[1673650195690,0.00941939,19837.0,19835.0,1.512462]
[1673650195940,0.00941939,19837.0,19836.0,0.090299]
[1673650196190,0.16168,19840.0,19836.0,1.008266]
[1673650196437,0.00785541,19838.0,19837.0,0.49915882]
[1673650196697,0.16249,19841.0,19837.0,1.00325782]
[1673650196698,0.00970861,19841.0,19837.0,1.00325782]
[1673650196941,0.00970861,19841.0,19837.0,1.50736582]
[1673650198182,0.00868814,19840.0,19837.0,1.50736582]
[1673650198436,0.20742257,19839.0,19836.0,0.504133]
[1673650198689,0.52427841,19838.0,19834.0,0.504159]
[1673650198943,0.34085741,19837.0,19834.0,1.06526706]
[1673650199182,0.34085741,19837.0,19834.0,0.504159]
[1673650199183,0.20028541,19837.0,19834.0,0.504159]
[1673650199421,0.20028541,19837.0,19833.0,0.504185]
[1673650199422,0.00701545,19836.0,19833.0,0.99066127]
[1673650199677,0.20730086,19836.0,19833.0,0.99066127]
[1673650199921,1.888695,19838.0,19834.0,0.54641849]
[1673650199922,1.888703,19838.0,19834.0,0.54641849]
[1673650200180,1.3920788,19838.0,19835.0,0.57482542]
[1673650200436,0.0086891,19837.0,19835.0,0.57482542]
[1673650200691,0.323993,19836.0,19835.0,0.57482542]
[1673650200939,0.0086891,19837.0,19835.0,0.57482542]
[1673650201442,0.323993,19836.0,19835.0,1.06398242]
[1673650201705,0.0086891,19837.0,19835.0,1.06398242]
[1673650201951,0.0086891,19837.0,19835.0,1.22079666]
[1673650202197,0.0086891,19837.0,19835.0,1.72495566]
[1673650202463,0.0086891,19837.0,19835.0,1.56814142]
[1673650202712,0.34885984,19836.0,19833.0,1.01465454]
[1673650202972,0.140572,19835.0,19833.0,1.01465454]
[1673650203220,0.323993,19834.0,19833.0,1.01465454]
[1673650203459,0.52427841,19834.0,19833.0,0.51044554]
[1673650203724,0.140572,19835.0,19833.0,0.51044554]
[1673650203984,0.323993,19834.0,19833.0,0.51044554]
[1673650204228,0.323993,19834.0,19831.0,1.008476]
[1673650204474,0.34872571,19834.0,19832.0,0.58653362]
[1673650204730,0.323993,19833.0,19832.0,0.58653362]
[1673650205221,0.02473271,19834.0,19832.0,0.58653362]
[1673650205471,0.323993,19833.0,19832.0,0.58653362]
[1673650206005,0.02473271,19834.0,19832.0,0.58653362]
[1673650206256,0.02473271,19834.0,19832.0,1.09076562]
[1673650206492,1.24307262,19837.0,19833.0,0.10907656]
[1673650206746,1.24307262,19837.0,19833.0,0.59393434]
[1673650206747,0.0210883,19836.0,19833.0,0.59393434]
[1673650207000,0.323993,19835.0,19833.0,0.59393434]
[1673650207504,0.323993,19835.0,19833.0,0.58893434]
[1673650207505,0.140572,19834.0,19833.0,0.58893434]
[1673650207752,0.58291355,19832.0,19830.0,0.65112037]